bitfinex-derivatives/quotes_BTCF0:USTF0_20230901
["timestamp","ask_amount","ask_price","bid_price","bid_amount"]
[1693583884031,0.47484838,25832.0,25831.0,0.4383]
[1693583884218,0.52953745,25832.0,25831.0,0.4383]
[1693583884417,0.68863745,25832.0,25831.0,0.4183]
[1693583884628,0.00387,25830.0,25828.0,0.4183]
[1693583884827,0.52953745,25829.0,25828.0,0.4183]
[1693583885038,0.4183,25829.0,25828.0,0.39901]
[1693583885238,0.52953745,25829.0,25828.0,0.39901]
[1693583885733,0.52953745,25829.0,25825.0,0.5748]
[1693583886026,0.4183,25827.0,25825.0,0.5948]
[1693583886232,0.4183,25827.0,25825.0,0.57551]
[1693583886233,0.00387,25826.0,25825.0,0.57551]
[1693583886427,0.11510745,25826.0,25825.0,0.4183]
[1693583887026,0.52953745,25826.0,25824.0,0.4183]
[1693583887328,0.52953745,25825.0,25824.0,0.4183]
[1693583887534,0.47484838,25825.0,25824.0,0.4183]
[1693583888224,0.48888925,25825.0,25824.0,0.4183]
[1693583888533,0.48888925,25825.0,25824.0,0.39902]
[1693583888727,0.47484838,25825.0,25821.0,0.4183]
[1693583888923,0.4183,25823.0,25821.0,0.4383]
[1693583889331,0.036,25825.0,25822.0,0.4183]
[1693583889530,0.05004087,25825.0,25824.0,0.4183]
[1693583889734,0.01404087,25825.0,25824.0,0.4183]
[1693583889925,0.03704087,25825.0,25824.0,0.4183]
[1693583890132,0.07304087,25825.0,25824.0,0.4183]
[1693583890329,0.18427832,25825.0,25824.0,0.4183]
[1693583890729,0.12958925,25825.0,25824.0,0.4183]
[1693583891127,0.09358925,25825.0,25824.0,0.4183]
[1693583891335,0.14258925,25825.0,25824.0,0.4183]
[1693583893524,0.08604087,25825.0,25824.0,0.43802583]
[1693583898141,0.14258925,25825.0,25824.0,0.4183]
[1693583898642,0.072,25825.0,25824.0,0.4183]
[1693583899043,0.08604087,25825.0,25824.0,0.4183]
[1693583899342,0.08604087,25825.0,25824.0,0.43802583]
[1693583899646,0.072,25825.0,25824.0,0.43802583]
[1693583900037,0.072,25825.0,25824.0,0.45802583]
[1693583900234,0.072,25825.0,25824.0,0.87632583]
[1693583901548,0.072,25825.0,25824.0,0.45802583]
[1693583902643,0.08604087,25825.0,25824.0,0.43802583]
[1693583904449,0.072,25825.0,25824.0,0.87632583]
[1693583905238,0.072,25825.0,25824.0,0.4383]
[1693583905444,0.56498907,25825.0,25824.0,0.4183]
[1693583905639,0.57902994,25825.0,25823.0,0.4183]
[1693583905850,0.05654838,25824.0,25823.0,0.4183]
[1693583906152,0.21794838,25824.0,25823.0,0.4183]
[1693583906852,0.23198925,25824.0,25823.0,0.4183]
[1693583907352,0.17544087,25824.0,25823.0,0.43802583]
[1693583908053,0.01404087,25824.0,25823.0,0.43802583]
[1693583908253,0.072,25825.0,25823.0,0.43802583]
[1693583908455,0.036,25825.0,25824.0,0.4183]
[1693583908752,0.036,25825.0,25824.0,0.43802583]
[1693583908950,0.00387,25826.0,25824.0,0.43802583]
[1693583909154,0.4183,25827.0,25825.0,0.43802583]
[1693583909454,0.01404087,25827.0,25826.0,0.4183]
[1693583909653,0.01404087,25827.0,25826.0,0.43802583]
[1693583909955,0.00387,25826.0,25825.0,0.4183]
[1693583910252,0.01791087,25826.0,25825.0,0.43802583]
[1693583910552,0.00387,25826.0,25825.0,0.43802583]
[1693583910953,0.01791087,25826.0,25825.0,0.43802583]
[1693583911850,0.03987,25826.0,25825.0,0.43802583]
[1693583912163,0.05004087,25826.0,25825.0,0.43802583]
[1693583912357,0.072,25826.0,25825.0,0.43802583]
[1693583913150,0.08604087,25826.0,25825.0,0.43802583]
[1693583913554,0.072,25826.0,25825.0,0.43802583]
[1693583914249,0.08604087,25826.0,25825.0,0.43802583]
[1693583917751,0.08604087,25826.0,25825.0,0.4183]
[1693583918359,0.08604087,25826.0,25825.0,0.43802583]
[1693583920066,0.072,25826.0,25825.0,0.43802583]
[1693583920265,0.08604087,25826.0,25825.0,0.43802583]
[1693583920459,0.072,25826.0,25825.0,0.43802583]
[1693583920662,0.08604087,25826.0,25825.0,0.43802583]
[1693583921368,0.072,25826.0,25825.0,0.43802583]
[1693583923869,0.08604087,25826.0,25825.0,0.43802583]
[1693583924775,0.072,25826.0,25825.0,0.43802583]
[1693583925075,0.27900907,25826.0,25825.0,0.43802583]
[1693583925268,0.08604087,25826.0,25825.0,0.43802583]
[1693583925475,0.08604087,25826.0,25825.0,0.4183]
[1693583925678,0.08604087,25826.0,25825.0,0.43802583]
[1693583926178,0.08604087,25826.0,25825.0,0.4183]
[1693583926873,0.08991087,25826.0,25825.0,0.4183]
[1693583929182,0.52821087,25826.0,25824.0,0.4183]
[1693583929479,0.52953745,25825.0,25824.0,0.4183]
[1693583929675,0.54357832,25825.0,25824.0,0.4183]
[1693583930077,0.77522154,25825.0,25824.0,0.4183]
[1693583930477,0.72053247,25825.0,25824.0,0.4183]
[1693583931177,0.75653247,25825.0,25824.0,0.4183]
[1693583931778,0.28168409,25825.0,25824.0,0.43802583]
[1693583931975,0.05004087,25825.0,25824.0,0.43802583]
[1693583932174,0.08604087,25825.0,25824.0,0.43802583]
[1693583934178,0.072,25825.0,25824.0,0.43802583]
[1693583936276,0.072,25825.0,25824.0,0.68021731]
[1693583936684,0.072,25825.0,25824.0,0.43802583]
[1693583936882,0.072,25825.0,25824.0,0.4183]
[1693583937482,0.12854838,25825.0,25824.0,0.4183]
[1693583937986,0.08604087,25825.0,25824.0,0.4183]
[1693583938187,0.08604087,25825.0,25824.0,0.43802583]
[1693583938591,0.072,25825.0,25824.0,0.43802583]
[1693583939089,0.08604087,25825.0,25824.0,0.43802583]
[1693583943288,0.072,25825.0,25824.0,1.09852321]
[1693583943794,0.1935858,25826.0,25824.0,2.07851686]
[1693583943986,0.1935858,25826.0,25825.0,0.68022321]
[1693583944181,0.1935858,25827.0,25825.0,0.70022321]
[1693583944388,0.23551322,25830.0,25826.0,0.66049738]
[1693583944588,0.24955409,25830.0,25829.0,0.4183]
[1693583945095,0.0739831,25830.0,25829.0,0.4183]
[1693583945299,0.34423352,25830.0,25829.0,0.4183]
[1693583945487,0.4007819,25830.0,25829.0,0.4183]
[1693583945890,0.91077097,25830.0,25829.0,0.003]
[1693583946089,0.67752055,25830.0,25829.0,0.006]
[1693583946294,1.00637818,25830.0,25829.0,0.006]
[1693583947792,0.69752055,25830.0,25829.0,0.006]
[1693583947995,1.08648861,25830.0,25829.0,0.006]
[1693583948294,1.07244828,25830.0,25823.0,0.4183]
[1693583948589,0.4183,25825.0,25823.0,0.4183]
[1693583948801,0.21864838,25824.0,25823.0,0.4183]
[1693583949191,0.29333745,25824.0,25823.0,0.4183]
[1693583949500,0.29333745,25824.0,25823.0,0.4213]
[1693583949797,0.23864838,25824.0,25823.0,0.4213]
[1693583949999,0.24668925,25824.0,25823.0,0.4213]
[1693583950395,0.33737832,25824.0,25823.0,0.4213]
[1693583950902,0.28268925,25824.0,25823.0,0.4243]
[1693583951299,0.51498783,25824.0,25823.0,0.4243]
[1693583951501,0.6056769,25824.0,25823.0,0.4243]
[1693583952390,0.55098783,25824.0,25823.0,0.4243]
[1693583952601,0.37337832,25824.0,25823.0,0.4243]
[1693583952986,0.31868925,25824.0,25823.0,0.4243]
[1693583954291,0.55098783,25824.0,25823.0,0.4243]
[1693583954702,0.6056769,25824.0,25823.0,0.4243]
[1693583955295,0.55098783,25824.0,25823.0,0.4243]
[1693583955798,1.0239769,25824.0,25823.0,0.006]
[1693583955995,0.8477632,25824.0,25823.0,0.006]
[1693583956200,0.8516332,25824.0,25823.0,0.006]
[1693583956995,0.8117632,25824.0,25823.0,0.003]
[1693583957207,1.11877821,25824.0,25823.0,0.003]
[1693583957495,0.00387,25820.0,25819.0,0.4183]
[1693583957700,0.25387985,25820.0,25819.0,0.4183]
[1693583958103,0.41367985,25820.0,25819.0,0.4183]
[1693583958403,0.35713147,25820.0,25819.0,0.43802583]
[1693583958597,0.38613147,25820.0,25819.0,0.43802583]
[1693583958801,0.23671087,25820.0,25819.0,0.43802583]
[1693583958996,0.22867,25820.0,25819.0,0.70025747]
[1693583959196,0.2248,25820.0,25819.0,0.70025747]
[1693583959390,0.2248,25820.0,25819.0,0.68053164]
[1693583959391,0.06887,25820.0,25819.0,0.68053164]
[1693583959590,0.25846147,25820.0,25819.0,0.4183]
[1693583959800,0.26233147,25820.0,25819.0,0.4183]
[1693583959998,0.31887985,25820.0,25819.0,0.4183]
[1693583961902,0.32692072,25820.0,25819.0,0.4183]
[1693583962801,0.32692072,25820.0,25819.0,0.41671]
[1693583962996,0.07691087,25820.0,25819.0,0.41671]
[1693583963196,0.27037234,25820.0,25819.0,0.41671]
[1693583963904,0.32692072,25820.0,25819.0,0.41671]
[1693583965907,0.38160979,25820.0,25819.0,0.41671]
[1693583966109,0.32692072,25820.0,25819.0,0.41671]
[1693583966708,0.13345925,25820.0,25819.0,0.41671]
[1693583966910,0.32692072,25820.0,25819.0,0.41671]
[1693583967107,0.12541838,25820.0,25819.0,0.41671]
[1693583967307,0.32692072,25820.0,25819.0,0.41671]
[1693583967706,0.32692072,25820.0,25819.0,0.43643583]
[1693583967707,0.07691087,25820.0,25819.0,0.43643583]
[1693583968914,0.06887,25820.0,25819.0,0.43643583]
[1693583969113,0.12541838,25820.0,25819.0,0.41671]
[1693583970419,0.13345925,25820.0,25819.0,0.41671]
[1693583971012,0.07691087,25820.0,25819.0,0.41671]
[1693583971208,0.18010745,25820.0,25819.0,0.41671]
[1693583971412,0.18814832,25820.0,25819.0,0.41671]
[1693583971613,0.13345925,25820.0,25819.0,0.41671]
[1693583971814,0.12958925,25820.0,25819.0,0.41671]
[1693583972002,0.065,25820.0,25819.0,0.43643583]
[1693583972420,0.07304087,25820.0,25819.0,0.41671]
[1693583973411,0.07304087,25820.0,25819.0,0.43643583]
[1693583974815,0.07304087,25820.0,25819.0,0.41671]
[1693583975618,0.065,25820.0,25819.0,0.41671]
[1693583975821,0.07304087,25820.0,25819.0,0.41671]
[1693583976019,0.07304087,25820.0,25819.0,0.43643583]
[1693583976317,0.065,25820.0,25819.0,0.43643583]
[1693583976717,0.065,25820.0,25819.0,0.41671]
[1693583976918,0.12958925,25820.0,25819.0,0.4183]
[1693583977118,0.12154838,25820.0,25819.0,0.4183]
[1693583978018,0.12958925,25820.0,25819.0,0.4183]
[1693583978824,0.065,25820.0,25819.0,0.4183]
[1693583979008,0.07304087,25820.0,25819.0,0.4183]
[1693583979815,0.065,25820.0,25819.0,0.4183]
[1693583980018,0.07304087,25820.0,25819.0,0.4183]
[1693583980520,0.12958925,25820.0,25819.0,0.4183]
[1693583980920,0.07304087,25820.0,25819.0,0.4183]
[1693583982120,0.12958925,25820.0,25819.0,0.4183]
[1693583982322,0.74135072,25820.0,25818.0,0.4183]
[1693583982524,0.1556,25819.0,25818.0,0.4183]
[1693583982712,0.16364087,25819.0,25818.0,0.66055211]
[1693583982914,0.22018925,25819.0,25818.0,0.66055211]
[1693583983109,0.21214838,25819.0,25818.0,0.66055211]
[1693583983315,0.27487832,25819.0,25818.0,0.66055211]
[1693583983611,0.21214838,25819.0,25818.0,0.66055211]
[1693583983817,0.26683745,25819.0,25818.0,0.66055211]
[1693583984522,0.24218925,25819.0,25818.0,0.66055211]
[1693583984714,0.27618925,25819.0,25818.0,0.66055211]
[1693583984917,0.2116,25819.0,25818.0,0.68027794]
[1693583985623,0.21964087,25819.0,25818.0,0.68027794]
[1693583986820,0.2116,25819.0,25818.0,0.68027794]
[1693583987017,0.21964087,25819.0,25818.0,0.68027794]
[1693583987217,0.27618925,25819.0,25818.0,0.66055211]
[1693583988117,0.21964087,25819.0,25818.0,0.66055211]
[1693583988623,0.27618925,25819.0,25818.0,0.66055211]
[1693583989224,0.27618925,25819.0,25818.0,0.68027794]
[1693583989522,0.21964087,25819.0,25818.0,0.68027794]
[1693583990417,0.2116,25819.0,25818.0,0.68027794]
[1693583990822,0.21964087,25819.0,25818.0,0.68027794]
[1693583991925,0.27618925,25819.0,25818.0,0.66055211]
[1693583992127,0.52433979,25819.0,25818.0,0.66055211]
[1693583992321,0.46965072,25819.0,25818.0,0.66055211]
[1693583995732,0.27618925,25819.0,25818.0,0.66055211]
[1693583996127,0.29618925,25819.0,25818.0,0.66055211]
[1693583997535,0.35087832,25819.0,25818.0,0.66055211]
[1693583997727,0.29618925,25819.0,25818.0,0.66055211]
[1693583998425,0.27618925,25819.0,25818.0,0.66055211]
[1693583998834,0.21964087,25819.0,25818.0,0.68027794]
[1693583999229,0.21964087,25819.0,25818.0,0.43802583]
[1693583999530,0.21964087,25819.0,25818.0,0.68029733]
[1693583999831,0.21964087,25819.0,25818.0,0.68028952]
[1693584000227,0.21964087,25819.0,25818.0,0.01972583]
[1693584002149,0.21964087,25819.0,25815.0,0.3]
[1693584003039,0.21964087,25819.0,25816.0,0.01972583]
[1693584003341,0.19764087,25819.0,25815.0,0.32]
[1693584003536,0.1586,25819.0,25815.0,0.323]
[1693584003747,0.1586,25819.0,25818.0,0.07732764]
[1693584003748,0.16864087,25819.0,25818.0,0.07732764]
[1693584004044,0.1606,25819.0,25818.0,0.07732764]
[1693584004243,0.1606,25819.0,25818.0,0.09705347]
[1693584004429,0.1606,25819.0,25818.0,0.01972583]
[1693584004834,0.1666,25819.0,25818.0,0.0970661]
[1693584005043,0.36833961,25819.0,25817.0,0.07734027]
[1693584005234,0.38833961,25819.0,25817.0,0.07734027]
[1693584005435,0.30493619,25818.0,25816.0,0.07734027]
[1693584005644,0.19369874,25817.0,25815.0,0.08034027]
[1693584005940,0.11123745,25816.0,25815.0,0.003]
[1693584006243,0.00387,25814.0,25813.0,0.07734027]
[1693584006440,0.11510745,25814.0,25813.0,0.06135027]
[1693584006640,0.11510745,25814.0,25809.0,0.31025529]
[1693584006641,0.11510745,25814.0,25810.0,0.11599147]
[1693584006839,0.00387,25814.0,25810.0,0.11599147]
[1693584007041,0.11123745,25813.0,25810.0,0.13599147]
[1693584007344,0.9,25812.0,25807.0,0.11599147]
[1693584007642,0.19369874,25812.0,25807.0,0.00071]
[1693584007838,0.1508,25811.0,25807.0,0.00071]
[1693584008035,0.19369874,25812.0,25808.0,0.31972583]
[1693584008241,0.01,25814.0,25811.0,0.3]
[1693584008444,0.036,25812.0,25811.0,0.32]
[1693584008645,0.072,25812.0,25811.0,0.32]
[1693584009050,0.072,25812.0,25811.0,0.30112583]
[1693584010238,0.036,25812.0,25811.0,0.30112583]
[1693584010432,0.03658113,25814.0,25811.0,0.28112583]
[1693584010632,0.03658113,25814.0,25812.0,0.01972583]
[1693584010844,0.00058113,25814.0,25811.0,0.2614]
[1693584011048,0.072,25812.0,25811.0,0.2814]
[1693584011644,0.03658113,25814.0,25811.0,0.28112583]
[1693584011946,0.07258113,25814.0,25812.0,0.24228979]
[1693584012142,0.07258113,25814.0,25813.0,0.01972583]
[1693584012342,0.12912951,25814.0,25813.0,0.26201562]
[1693584012643,0.07258113,25814.0,25813.0,1.35877144]
[1693584013043,0.15646038,25814.0,25813.0,1.35877144]
[1693584013239,0.12046038,25814.0,25813.0,1.35877144]
[1693584014141,0.19506038,25814.0,25813.0,1.35877144]
[1693584014846,0.19893038,25814.0,25813.0,1.35877144]
[1693584015147,0.21506038,25814.0,25813.0,1.35877144]
[1693584015348,0.33792951,25814.0,25813.0,1.31245057]
[1693584015546,0.11118113,25814.0,25813.0,1.29347057]
[1693584015936,0.11118113,25814.0,25813.0,1.13620748]
[1693584020753,0.11118113,25814.0,25813.0,1.15620748]
[1693584021646,0.11118113,25814.0,25813.0,1.13620748]
[1693584023848,0.07518113,25814.0,25813.0,1.13620748]
[1693584024152,0.11118113,25814.0,25813.0,1.15720748]
[1693584025748,0.11118113,25814.0,25813.0,1.13720748]
[1693584026048,0.11118113,25814.0,25813.0,1.15720748]
[1693584026359,0.11118113,25814.0,25813.0,1.13720748]
[1693584028751,0.07258113,25814.0,25813.0,1.15720748]
[1693584029148,0.07258113,25814.0,25813.0,1.13720748]
[1693584029349,0.07258113,25814.0,25813.0,1.15720748]
[1693584030152,0.07258113,25814.0,25813.0,1.7387069]
[1693584031258,0.1502,25817.0,25814.0,0.68]
[1693584031451,0.1502,25817.0,25816.0,0.4186]
[1693584031651,0.1616,25819.0,25816.0,1.53508165]
[1693584031851,0.1616,25819.0,25818.0,0.4186]
[1693584032052,0.1616,25819.0,25818.0,1.53508165]
[1693584032358,0.323,25819.0,25818.0,1.53508165]
[1693584032554,0.323,25819.0,25818.0,1.55480748]
[1693584033255,0.36,25819.0,25818.0,1.55780748]
[1693584033458,0.037,25819.0,25818.0,1.83920748]
[1693584033656,0.0386,25823.0,25822.0,0.4186]
[1693584033850,0.0386,25823.0,25822.0,0.8372]
[1693584034150,0.0386,25823.0,25822.0,1.97340748]
[1693584035358,0.3181,25825.0,25822.0,1.97340748]
[1693584035662,0.3381,25825.0,25824.0,0.4186]
[1693584035858,0.3181,25825.0,25824.0,1.53508165]
[1693584036058,0.3181,25825.0,25824.0,1.55480748]
[1693584037356,0.3381,25825.0,25824.0,1.53508165]
[1693584037757,0.39464838,25825.0,25824.0,1.53508165]
[1693584037960,0.3751,25825.0,25824.0,1.53808165]
[1693584038153,0.3751,25825.0,25824.0,1.55780748]
[1693584038356,0.4081,25825.0,25824.0,1.55780748]
[1693584039168,0.4081,25825.0,25824.0,1.56080748]
[1693584040650,0.3881,25825.0,25824.0,1.56080748]
[1693584042659,0.4081,25825.0,25824.0,1.54108165]
[1693584043160,0.3881,25825.0,25824.0,1.54108165]
[1693584043367,0.4081,25825.0,25824.0,1.54108165]
[1693584043762,0.3881,25825.0,25824.0,1.56080748]
[1693584046364,0.4186,25831.0,25824.0,1.56080748]
[1693584046365,0.23179411,25833.0,25824.0,1.56108165]
[1693584046564,0.25179411,25833.0,25832.0,0.4186]
[1693584046768,0.21834559,25833.0,25832.0,0.16669608]
[1693584046963,0.36284724,25833.0,25832.0,0.16669608]
[1693584047560,0.39284724,25833.0,25832.0,0.16669608]
[1693584048164,0.36284724,25833.0,25832.0,0.16669608]
[1693584048367,0.39284724,25833.0,25832.0,0.16969608]
[1693584048765,0.39284724,25833.0,25832.0,0.17269608]
[1693584049066,0.33815817,25833.0,25832.0,0.17269608]
[1693584049272,0.39284724,25833.0,25832.0,0.17269608]
[1693584049457,0.55934724,25833.0,25832.0,0.17269608]
[1693584050262,0.50465817,25833.0,25832.0,0.17269608]
[1693584050564,0.47465817,25833.0,25832.0,0.16969608]
[1693584050766,0.50465817,25833.0,25832.0,0.17269608]
[1693584051469,0.50852817,25833.0,25832.0,0.17269608]
[1693584051974,0.45197979,25833.0,25832.0,0.17269608]
[1693584052275,0.56321724,25833.0,25832.0,0.17269608]
[1693584053272,0.53321724,25833.0,25832.0,0.16969608]
[1693584053474,0.22037,25833.0,25832.0,0.17269608]
[1693584054069,0.27505907,25833.0,25832.0,0.17269608]
[1693584054377,0.33160745,25833.0,25832.0,0.17269608]
[1693584054672,0.27691838,25833.0,25832.0,0.17269608]
[1693584055074,0.33160745,25833.0,25832.0,0.17269608]
[1693584055278,0.56321724,25833.0,25832.0,0.17269608]
[1693584056769,0.82838629,25833.0,25832.0,0.006]
[1693584057164,1.09881275,25833.0,25832.0,0.006]
[1693584057469,0.82838629,25833.0,25832.0,0.006]
[1693584058873,1.09881275,25833.0,25832.0,0.00189898]
[1693584059273,1.09881275,25833.0,25832.0,9.898e-05]
[1693584059477,0.3,25829.0,25828.0,0.4186]
[1693584059671,0.66268787,25829.0,25828.0,0.4186]
[1693584059870,0.82668787,25829.0,25828.0,0.4186]
[1693584060872,0.59723745,25829.0,25828.0,0.4216]
[1693584061064,0.59723745,25829.0,25828.0,0.4246]
[1693584061270,0.63023745,25829.0,25828.0,0.4246]
[1693584061979,0.199,25829.0,25828.0,0.4246]
[1693584062373,0.199,25829.0,25828.0,0.44432583]
[1693584063170,0.199,25829.0,25828.0,0.4246]
[1693584063379,0.6376,25829.0,25828.0,0.4246]
[1693584063581,0.69414838,25829.0,25828.0,0.4246]
[1693584063789,0.72883745,25829.0,25828.0,0.4246]
[1693584063978,0.25554838,25829.0,25828.0,0.4246]
[1693584064180,0.199,25829.0,25828.0,0.44432583]
[1693584065679,0.39196681,25829.0,25828.0,0.44432583]
[1693584066180,0.199,25829.0,25828.0,0.44432583]
[1693584067079,0.31023745,25829.0,25828.0,0.4246]
[1693584068077,0.25554838,25829.0,25828.0,0.4246]
[1693584069671,0.31023745,25829.0,25828.0,0.4246]
[1693584069870,0.33023745,25829.0,25828.0,0.4246]
[1693584072571,0.56168787,25829.0,25828.0,0.4246]
[1693584072990,0.33023745,25829.0,25828.0,0.4246]
[1693584073173,0.31023745,25829.0,25828.0,0.4246]
[1693584073377,0.33023745,25829.0,25828.0,0.4246]
[1693584073786,0.56213293,25829.0,25828.0,0.4246]
[1693584074080,0.48744386,25829.0,25828.0,0.4246]
[1693584074287,0.54213293,25829.0,25828.0,0.4246]
[1693584074683,0.31023745,25829.0,25828.0,0.4246]
[1693584074884,0.38793641,25829.0,25828.0,0.4246]
[1693584076080,0.6579619,25829.0,25828.0,0.4246]
[1693584076285,0.6579619,25829.0,25828.0,0.006]
[1693584076286,1.0965619,25829.0,25828.0,0.006]
[1693584076495,1.2528641,25829.0,25828.0,0.00192863]
[1693584076683,1.5,25826.0,25821.0,0.4186]
[1693584076884,0.65069538,25823.0,25821.0,0.39932]
[1693584077079,0.11123745,25822.0,25821.0,0.39932]
[1693584077392,0.05654838,25822.0,25821.0,0.4186]
[1693584077586,0.23209538,25824.0,25821.0,0.40837]
[1693584077781,0.70937794,25825.0,25823.0,0.4186]
[1693584077983,0.07770622,25824.0,25821.0,0.004]
[1693584078288,0.34337791,25823.0,25821.0,0.004]
[1693584078588,0.23214046,25823.0,25822.0,0.4186]
[1693584078788,0.34337791,25823.0,25822.0,0.4186]
[1693584079790,0.49857791,25823.0,25822.0,0.4186]
[1693584080179,0.53557791,25823.0,25822.0,0.4216]
[1693584080576,0.99117791,25823.0,25822.0,0.006]
[1693584080788,1.0888933,25823.0,25822.0,0.006]
[1693584080986,0.85675284,25823.0,25822.0,0.006]
[1693584081190,0.77903745,25823.0,25822.0,0.006]
[1693584081387,1.15655145,25823.0,25822.0,0.006]
[1693584081691,1.15655145,25823.0,25810.0,0.11582127]
[1693584081692,0.6,25818.0,25812.0,0.3139]
[1693584081890,0.19335934,25815.0,25813.0,1.11668755]
[1693584082082,0.05654838,25814.0,25808.0,0.1567]
[1693584082283,0.05654838,25814.0,25813.0,0.4186]
[1693584082284,0.00386,25814.0,25813.0,0.4186]
[1693584082486,1.04705679,25814.0,25810.0,0.4186]
[1693584082693,0.4186,25812.0,25811.0,1.12063199]
[1693584082890,0.4386,25812.0,25811.0,1.12063199]
[1693584083084,0.54983745,25812.0,25811.0,1.11676199]
[1693584083490,0.49514838,25812.0,25811.0,1.11676199]
[1693584083794,0.51114838,25812.0,25811.0,1.11676199]
[1693584084791,0.56583745,25812.0,25811.0,1.11976199]
[1693584084995,0.60283745,25812.0,25811.0,1.11976199]
[1693584085499,0.54814838,25812.0,25811.0,1.11976199]
[1693584086197,0.60283745,25812.0,25811.0,0.003]
[1693584086397,0.62283745,25812.0,25811.0,0.003]
[1693584087391,0.60283745,25812.0,25811.0,0.003]
[1693584087602,0.62283745,25812.0,25811.0,0.003]
[1693584087790,1.62283745,25812.0,25811.0,0.003]
[1693584088896,1.60283745,25812.0,25811.0,1.11982961]
[1693584089091,1.62283745,25812.0,25811.0,1.11982961]
[1693584089699,1.62283745,25812.0,25811.0,0.003]
[1693584090196,1.54814838,25812.0,25811.0,0.003]
[1693584090397,1.5116,25812.0,25811.0,0.01287]
[1693584090698,1.4916,25812.0,25811.0,0.00687]
[1693584091098,1.54814838,25812.0,25811.0,0.02687]
[1693584091289,1.54814838,25812.0,25811.0,0.023]
[1693584091690,1.60283745,25812.0,25811.0,0.023]
[1693584091992,1.54814838,25812.0,25811.0,0.023]
[1693584092301,1.60283745,25812.0,25811.0,0.003]
[1693584092996,1.073,25812.0,25811.0,0.45147]
[1693584093196,1.073,25812.0,25811.0,1.56821856]
[1693584093697,1.073,25812.0,25811.0,1.58794439]
[1693584093900,1.18423745,25812.0,25811.0,1.55834856]
[1693584094394,1.073,25812.0,25811.0,1.55834856]
[1693584094697,1.073,25812.0,25811.0,1.56407439]
[1693584094901,1.073,25812.0,25811.0,1.55834856]
[1693584095501,1.12954838,25812.0,25811.0,1.55834856]
[1693584095706,1.54814838,25812.0,25811.0,1.11974856]
[1693584095897,1.54814838,25812.0,25811.0,0.00687]
[1693584096200,1.60283745,25812.0,25811.0,0.00687]
[1693584096597,1.60283745,25812.0,25811.0,0.003]
[1693584096896,1.62283745,25812.0,25811.0,0.003]
[1693584097404,2.22283745,25812.0,25811.0,0.00280289]
[1693584102207,2.1116,25812.0,25811.0,0.00280289]
[1693584102900,2.22283745,25812.0,25811.0,0.00280289]
[1693584104204,2.20283745,25812.0,25811.0,0.00280289]
[1693584104504,2.22283745,25812.0,25811.0,0.00280289]
[1693584106103,0.00387,25804.0,25794.0,0.97437]
[1693584106299,0.00180174,25810.0,25795.0,1.27261803]
[1693584106300,1.5,25802.0,25795.0,1.27261803]
[1693584106505,0.4186,25799.0,25796.0,1.11711803]
[1693584106802,1.5,25802.0,25797.0,1.11722408]
[1693584106803,0.4186,25798.0,25797.0,1.11722408]
[1693584106997,0.4186,25798.0,25797.0,0.02]
[1693584107812,0.47514838,25798.0,25797.0,0.4386]
[1693584108101,0.52983745,25798.0,25797.0,0.4386]
[1693584108305,0.47514838,25798.0,25797.0,0.4386]
[1693584108611,0.47514838,25798.0,25797.0,0.44248]
[1693584108797,0.51114838,25798.0,25797.0,0.42248]
[1693584109105,0.56583745,25798.0,25795.0,0.1635]
[1693584109307,0.4186,25796.0,25795.0,0.19338]
[1693584109501,0.4186,25796.0,25795.0,0.21368695]
[1693584109708,0.036,25798.0,25795.0,0.21368695]
[1693584109709,0.4756,25798.0,25795.0,0.62840695]
[1693584109899,0.4756,25798.0,25797.0,0.42248]
[1693584110099,0.4756,25798.0,25797.0,0.45890695]
[1693584110299,0.4906,25798.0,25797.0,0.45890695]
[1693584110499,0.4906,25798.0,25797.0,0.46490695]
[1693584110994,0.4906,25798.0,25797.0,0.4386]
[1693584111399,0.4906,25798.0,25797.0,0.4186]
[1693584111707,0.4906,25798.0,25797.0,0.4446]
[1693584112208,0.54714838,25798.0,25797.0,0.4446]
[1693584112406,0.072,25798.0,25797.0,0.026]
[1693584113008,0.00058146,25799.0,25798.0,0.00388]
[1693584113201,1.8,25809.0,25802.0,0.6208]
[1693584113402,0.00180174,25810.0,25809.0,0.00388]
[1693584113600,0.05835012,25810.0,25809.0,0.00388]
[1693584114010,0.05835012,25810.0,25809.0,0.64468]
[1693584114011,0.00180174,25810.0,25809.0,0.64468]
[1693584114205,0.00180174,25810.0,25809.0,0.6408]
[1693584114396,0.05835012,25810.0,25809.0,0.02]
[1693584114602,0.05835012,25810.0,25806.0,0.6208]
[1693584114799,0.05654838,25809.0,25808.0,0.00388]
[1693584115199,0.05654838,25809.0,25806.0,0.6208]
[1693584115405,0.05654838,25808.0,25806.0,0.6408]
[1693584115710,0.10642885,25810.0,25807.0,0.006]
[1693584115905,0.17012885,25810.0,25807.0,0.02]
[1693584116108,0.037,25809.0,25808.0,0.01288]
[1693584116313,0.074,25809.0,25808.0,0.03018695]
[1693584116613,0.18523745,25809.0,25808.0,0.006]
[1693584116812,0.14823745,25809.0,25808.0,0.003]
[1693584117013,0.76903745,25809.0,25808.0,0.003]
[1693584117216,0.76903745,25809.0,25808.0,0.00688]
[1693584117417,0.80603745,25809.0,25808.0,0.00988]
[1693584117805,0.75134838,25809.0,25808.0,0.00988]
[1693584118013,0.75134838,25809.0,25808.0,0.006]
[1693584118904,0.71434838,25809.0,25808.0,0.003]
[1693584119412,0.76903745,25809.0,25808.0,0.003]
[1693584119806,0.80603745,25809.0,25808.0,0.006]
[1693584120007,0.80603745,25809.0,25808.0,0.00988]
[1693584120204,0.6948,25809.0,25808.0,0.00988]
[1693584120509,0.71434838,25809.0,25808.0,0.00688]
[1693584120713,0.75134838,25809.0,25808.0,0.00988]
[1693584120919,0.75134838,25809.0,25808.0,0.006]
[1693584120920,2.00990745,25809.0,25808.0,0.006]
[1693584121107,0.82990745,25809.0,25808.0,0.006]
[1693584121304,0.71434838,25809.0,25808.0,0.006]
[1693584121509,0.80603745,25809.0,25808.0,0.006]
[1693584121811,2.02990745,25809.0,25808.0,0.006]
[1693584122011,0.82990745,25809.0,25808.0,0.006]
[1693584122209,0.00387,25808.0,25798.0,0.97437]
[1693584122404,0.6208,25807.0,25802.0,0.6208]
[1693584122601,0.6208,25807.0,25802.0,0.6408]